fUSD/lending_fUSD_20251214
["ID","MTS","AMOUNT","RATE_DAILY","PERIOD"]
[398465892,1765685443691,-345.95569483,0.00016999,2]
[398465893,1765685443704,-151.0,0.00016999,2]
[398465894,1765685443715,-167.543434,0.00016999,2]
[398465895,1765685443724,-281.03793,0.00016999,2]
[398465896,1765685443736,-158.741305,0.00016999,2]
[398465897,1765685443745,-281.03793,0.00016999,2]
[398465898,1765685443755,-158.741305,0.00016999,2]
[398465900,1765685443766,-281.03793,0.00016999,2]
[398465901,1765685443776,-158.741305,0.00016999,2]
[398465903,1765685443786,-242.96738929,0.00016999,2]
[398465905,1765685443797,-38.07053971,0.00016999,2]
[398465907,1765685443807,-158.7413,0.00016999,2]
[398465909,1765685443816,-300.0,0.00016999,2]
[398465910,1765685443825,-300.0,0.00016999,2]
[398465911,1765685443835,-553.09527058,0.00017,2]
[398465912,1765685443846,-1323.90472942,0.00017,2]
[398465913,1765685443855,-18528.87488191,0.00017,2]
[398465914,1765685443868,-3081.67201092,0.00017,2]
[398465915,1765685443883,-5175.02687909,0.00017,2]
[398465916,1765685443994,-23148.57066792,0.00017,2]
[398465918,1765685446436,-362.98769326,0.00017,2]
[398465919,1765685446491,-409.04505204,0.00017,2]
[398465924,1765685984541,1000.0,0.00015769,2]
[398465925,1765686034403,250.0,0.00015754,2]
[398465926,1765686065837,1348.41,0.00015754,2]
[398465927,1765686371334,14722.57627031,0.000225,120]
[398465932,1765686486448,200.0,0.00015554,2]
[398465943,1765686631361,-298.22613208,0.00015836,2]
[398465944,1765686631372,-237.55386792,0.00015836,2]
[398465945,1765686631382,-300.0,0.00015971,2]
[398465946,1765686631392,-1200.0,0.00015971,2]
[398465947,1765686631401,-2155.4232,0.00015972,2]
[398465948,1765686631410,-10500.01,0.00015972,2]
[398465949,1765686631419,-575.48235291,0.00015981,2]
[398465950,1765686631428,-999.0,0.0001602,3]
[398465951,1765686631437,-150.0,0.00016037,2]
[398465952,1765686631446,-437.0,0.0001607,2]
[398465953,1765686631455,-247.25,0.00016071,2]
[398465954,1765686631464,-55.44167496,0.00016071,2]
[398465955,1765686631476,-135.94563014,0.00016071,2]
[398465956,1765686631485,-153.2553194,0.00016071,2]
[398465957,1765686631494,-205.15889784,0.00016071,2]
[398465958,1765686631503,-500.0,0.00016071,2]
[398465959,1765686631512,-500.0,0.00016071,2]
[398465960,1765686631521,-500.0,0.00016071,2]
[398465961,1765686631530,-500.0,0.00016071,2]
[398465962,1765686631539,-500.0,0.00016071,2]
[398465963,1765686631548,-500.0,0.00016071,2]
[398465964,1765686631557,-500.0,0.00016071,2]
[398465965,1765686631566,-324.54466165,0.00016071,2]
[398465966,1765686631576,-500.0,0.00016071,2]
[398465967,1765686631586,-500.0,0.00016071,2]
[398465968,1765686631595,-379.39488367,0.00016071,2]
[398465969,1765686631610,-120.60511633,0.00016071,2]
[398465970,1765686631620,-500.0,0.00016071,2]
[398465971,1765686631629,-500.0,0.00016071,2]
[398465972,1765686631638,-500.0,0.00016071,2]
[398465973,1765686631647,-500.0,0.00016071,2]
[398465974,1765686631656,-621.19993077,0.00016071,2]
[398465975,1765686631665,-540.22376764,0.00016071,2]
[398465976,1765686631674,-200.0,0.00016081,2]
[398465977,1765686631683,-575.48235289,0.00016194,2]
[398465978,1765686631692,-166.81,0.0001623,2]
[398465979,1765686631701,-247.25,0.00016345,2]
[398465980,1765686631709,-500.0,0.00016373,2]
[398465981,1765686631719,-575.48235289,0.00016407,2]
[398465982,1765686631728,-500.0,0.00016438,2]
[398465984,1765686631737,-500.0,0.00016438,2]
[398465986,1765686631745,-500.0,0.00016438,2]
[398465988,1765686631755,-500.0,0.00016438,2]
[398465990,1765686631763,-500.0,0.00016438,2]
[398465992,1765686631772,-500.0,0.00016438,2]
[398465994,1765686631781,-588.53289354,0.00016438,2]
[398465996,1765686631790,-500.0,0.00016438,2]
[398465998,1765686631799,-500.0,0.00016438,2]
[398466000,1765686631808,-161.5784356,0.00016438,2]
[398466002,1765686631817,-500.0,0.00016438,2]
[398466004,1765686631827,-500.0,0.00016438,2]
[398466006,1765686631835,-500.0,0.00016438,2]
[398466008,1765686631844,-500.0,0.00016438,2]
[398466010,1765686631855,-500.0,0.00016438,2]
[398466012,1765686631863,-255.34155237,0.00016438,2]
[398466014,1765686631875,-244.65844763,0.00016438,2]
[398466016,1765686631884,-500.0,0.00016438,2]
[398466018,1765686631894,-500.0,0.00016438,2]
[398466020,1765686631903,-174.85562772,0.00016438,2]
[398466022,1765686631912,-375.78494095,0.00016438,2]
[398466024,1765686631921,-500.0,0.00016438,2]
[398466025,1765686631930,-500.0,0.00016438,2]
[398466026,1765686631939,-150.0,0.00016438,2]
[398466027,1765686631949,-300.0,0.00016438,2]
[398466028,1765686631958,-2049.74,0.00016438,2]
[398466029,1765686631967,-150.0,0.00016438,2]
[398466030,1765686631976,-150.0,0.00016438,2]
[398466031,1765686631986,-150.0,0.00016438,2]
[398466032,1765686631995,-150.0,0.00016438,2]
[398466033,1765686632004,-553.22,0.00016438,2]
[398466034,1765686632013,-150.0,0.00016438,2]
[398466035,1765686632024,-150.0,0.00016438,2]
[398466036,1765686632034,-1104.63,0.00016438,2]
[398466037,1765686632044,-150.0,0.00016478,2]
[398466038,1765686632054,-300.0,0.00016478,2]
[398466039,1765686632063,-150.0,0.000165,2]
[398466040,1765686632072,-150.0,0.000165,2]
[398466041,1765686632081,-432.25,0.00016606,2]
[398466042,1765686632091,-247.2683014,0.00016619,2]
[398466043,1765686632100,-575.48235289,0.00016621,2]
[398466044,1765686632109,-688.87633364,0.0001666,2]
[398466045,1765686632119,-815.0,0.00016712,2]
[398466046,1765686632128,-500.0,0.00016712,2]
[398466047,1765686632138,-150.0,0.00016712,2]
[398466048,1765686632147,-150.0,0.00016712,2]
[398466049,1765686632155,-196.36,0.00016777,2]
[398466050,1765686632165,-338.53189062,0.00016797,2]
[398466051,1765686632174,-574.12855637,0.00016797,2]
[398466052,1765686632183,-153.05897419,0.00016797,2]
[398466053,1765686632193,-1111.0,0.00016797,2]
[398466054,1765686632203,-660.76666909,0.00016797,2]
[398466055,1765686632212,-300.0,0.00016797,2]
[398466056,1765686632222,-575.48235289,0.00016834,2]
[398466057,1765686632231,-815.0,0.00016849,2]
[398466058,1765686632240,-500.0,0.00016849,2]
[398466059,1765686632250,-150.0,0.00016849,2]
[398466060,1765686632260,-1111.0,0.00016852,2]
[398466061,1765686632272,-200.0,0.00016863,2]
[398466062,1765686632282,-200.0,0.00016864,2]
[398466063,1765686632291,-200.0,0.00016864,2]
[398466064,1765686632300,-166.81,0.00016899,2]
[398466065,1765686632313,-151.0,0.000169,2]
[398466066,1765686632323,-168.55634252,0.000169,2]
[398466067,1765686632332,-280.91105772,0.000169,2]
[398466068,1765686632341,-176.0353011,0.000169,2]
[398466069,1765686632351,-169.26637833,0.000169,2]
[398466070,1765686632361,-1111.0,0.00016907,2]
[398466071,1765686632370,-1000.0,0.00016921,2]
[398466072,1765686632764,-274.55,0.00016945,2]
[398466073,1765686632799,-1111.0,0.00016962,2]
[398466074,1765686632808,-481.15230225,0.00016968,2]
[398466075,1765686632817,-306.30880156,0.00016973,2]
[398466076,1765686632826,-487.452036,0.00016973,2]
[398466077,1765686632835,-500.0,0.00016973,2]
[398466078,1765686632844,-506.84168924,0.00016973,2]
[398466079,1765686632853,-500.0,0.00016973,2]
[398466080,1765686632862,-500.0,0.00016973,2]
[398466081,1765686632871,-500.0,0.00016973,2]
[398466082,1765686632880,-537.10639322,0.00016973,2]
[398466083,1765686632888,-500.0,0.00016973,2]
[398466084,1765686632897,-507.12671116,0.00016973,2]
[398466085,1765686632906,-252.27657404,0.00016973,2]
[398466086,1765686632915,-500.0,0.00016973,2]
[398466087,1765686632924,-500.0,0.00016973,2]
[398466088,1765686632933,-500.0,0.00016973,2]
[398466089,1765686632943,-815.0,0.00016986,2]
[398466090,1765686632952,-570.54319198,0.00016986,2]
[398466091,1765686632961,-200.0,0.00016986,2]
[398466092,1765686632970,-500.0,0.00016986,2]
[398466093,1765686632979,-8123.46917743,0.00016999,2]
[398466094,1765686632990,-504.83378329,0.00016999,2]
[398466095,1765686633001,-572.65890075,0.00016999,2]
[398466096,1765686633015,-1326.4511873,0.00016999,2]
[398466097,1765686633026,-4646.54459802,0.00016999,2]
[398466098,1765686633037,-8406.3084529,0.00016999,2]
[398466099,1765686633048,-736.15913191,0.00016999,2]
[398466100,1765686633058,-154.079718,0.00016999,2]
[398466101,1765686633067,-581.46019901,0.00016999,2]
[398466104,1765686637396,-821.0,0.00016999,2]
[398466105,1765686637535,-4284.12654199,0.00016999,2]
[398466106,1765686637545,-1052.2906678,0.00016999,2]
[398466107,1765686637555,-300.0,0.00016999,2]
[398466108,1765686637565,-12076.50918961,0.00016999,2]
[398466146,1765686640442,-501.0905001,0.00016999,2]
[398466147,1765686640457,-1075.94271999,0.00016999,2]
[398466148,1765686640466,-3279.90728001,0.00017,2]
[398466149,1765686640477,-5406.50649121,0.00017,2]
[398466152,1765686642435,-25981.31607109,0.00017,2]
[398466153,1765686642645,-662.76,0.00017,2]
[398466154,1765686642657,-302.05042645,0.00017,2]
[398466167,1765686645447,-553.11,0.00016438,2]
[398466168,1765686645456,-16250.98074715,0.00017,2]
[398466169,1765686645606,-1008.24074895,0.00017,2]
[398466190,1765687335522,166.66,0.00015038,2]
[398466191,1765687335763,166.66,0.00015355,2]
[398466192,1765687335960,166.66,0.00015672,2]
[398466193,1765687527170,211.0,9.989e-05,2]
[398466197,1765687781724,802.21,0.00013699,2]
[398466210,1765687831546,-300.0,0.00015844,2]
[398466211,1765687831555,-1183.84770421,0.00015844,2]
[398466212,1765687831568,-16.15229579,0.00015844,2]
[398466213,1765687831577,-300.0,0.00015844,2]
[398466214,1765687831587,-250.0,0.00015844,2]
[398466215,1765687831596,-18703.26,0.00015845,2]
[398466216,1765687831606,-161.81,0.00015863,2]
[398466217,1765687831616,-1000.0,0.00015872,2]
[398466218,1765687831625,-6568.8995,0.00015872,2]
[398466219,1765687831635,-2500.0,0.00015872,2]
[398466220,1765687831644,-330.80173516,0.000159,2]
[398466221,1765687831653,-166.66,0.00015988,2]
[398466222,1765687831663,-166.66,0.00016305,2]
[398466223,1765687831672,-152.46,0.00016373,2]
[398466224,1765687831682,-500.0,0.00016373,2]
[398466225,1765687831691,-300.0,0.00016413,2]
[398466226,1765687831700,-574.12855637,0.00016413,2]
[398466227,1765687831710,-1229.38032472,0.00016413,2]
[398466228,1765687831719,-508.9156175,0.00016437,2]
[398466229,1765687831729,-546.23,0.00016437,2]
[398466230,1765687831738,-8117.86,0.00016438,2]
[398466231,1765687831747,-500.0,0.00016558,2]
[398466232,1765687831757,-620.09484819,0.00016558,2]
[398466234,1765687831765,-500.0,0.00016558,2]
[398466236,1765687831775,-500.0,0.00016558,2]
[398466238,1765687831784,-500.0,0.00016558,2]
[398466240,1765687831793,-500.0,0.00016558,2]
[398466242,1765687831803,-500.0,0.00016558,2]
[398466244,1765687831813,-500.0,0.00016558,2]
[398466246,1765687831822,-500.0,0.00016558,2]
[398466248,1765687831831,-500.0,0.00016558,2]
[398466250,1765687831841,-500.0,0.00016558,2]
[398466252,1765687831850,-500.0,0.00016558,2]
[398466254,1765687831859,-500.0,0.00016558,2]
[398466256,1765687831869,-500.0,0.00016558,2]
[398466258,1765687831878,-500.0,0.00016558,2]
[398466260,1765687831887,-500.0,0.00016558,2]
[398466261,1765687831900,-531.72897911,0.00016558,2]
[398466263,1765687831912,-500.0,0.00016558,2]
[398466265,1765687831922,-500.0,0.00016558,2]
[398466267,1765687831932,-500.0,0.00016558,2]
[398466268,1765687831940,-500.0,0.00016558,2]
[398466269,1765687831949,-500.0,0.00016558,2]
[398466270,1765687831958,-500.0,0.00016558,2]
[398466271,1765687831967,-500.0,0.00016558,2]
[398466272,1765687831976,-500.0,0.00016558,2]
[398466273,1765687831986,-500.0,0.00016558,2]
[398466274,1765687831995,-500.0,0.00016558,2]
[398466275,1765687832005,-500.0,0.00016558,2]
[398466276,1765687832014,-500.0,0.00016558,2]
[398466277,1765687832024,-500.0,0.00016558,2]
[398466278,1765687832033,-500.0,0.00016558,2]
[398466279,1765687832042,-500.0,0.00016558,2]
[398466280,1765687832053,-500.0,0.00016558,2]
[398466281,1765687832062,-500.0,0.00016558,2]
[398466282,1765687832071,-500.0,0.00016558,2]
[398466283,1765687832080,-239.94562999,0.00016558,2]
[398466284,1765687832090,-500.0,0.00016558,2]
[398466285,1765687832099,-500.0,0.00016558,2]
[398466286,1765687832108,-500.0,0.00016558,2]
[398466287,1765687832117,-300.0,0.00016558,2]
[398466288,1765687832126,-150.0,0.000166,2]
[398466289,1765687832136,-150.0,0.000166,2]
[398466290,1765687832145,-300.0,0.000166,2]
[398466291,1765687832154,-150.0,0.000166,2]
[398466292,1765687832163,-150.0,0.000166,2]
[398466293,1765687832173,-150.0,0.000166,2]
[398466294,1765687832182,-150.0,0.000166,2]
[398466295,1765687832192,-150.0,0.000166,2]
[398466296,1765687832201,-150.0,0.000166,2]
[398466297,1765687832211,-703.86,0.000166,2]
[398466298,1765687832223,-150.0,0.000166,2]
[398466299,1765687832232,-703.86,0.000166,2]
[398466300,1765687832243,-1407.72,0.000166,2]
[398466301,1765687832253,-703.86,0.000166,2]
[398466302,1765687832262,-703.86,0.000166,2]
[398466303,1765687832273,-703.86,0.000166,2]
[398466304,1765687832282,-703.86,0.000166,2]
[398466305,1765687832292,-703.86,0.000166,2]
[398466306,1765687832302,-300.0,0.000166,2]
[398466307,1765687832312,-150.0,0.000166,2]
[398466308,1765687832322,-703.86,0.000166,2]
[398466309,1765687832331,-151.08,0.000166,2]
[398466310,1765687832340,-703.86,0.000166,2]
[398466311,1765687832352,-703.86,0.000166,2]
[398466312,1765687832362,-166.66,0.00016621,2]
[398466313,1765687832371,-3361.89381235,0.00016659,2]
[398466314,1765687832381,-459.25088909,0.0001666,2]
[398466315,1765687832391,-150.0,0.00016678,2]
[398466316,1765687832400,-150.0,0.000167,2]
[398466317,1765687832411,-150.0,0.000167,2]
[398466318,1765687832423,-150.0,0.000167,2]
[398466319,1765687832433,-150.0,0.000167,2]
[398466320,1765687832443,-150.0,0.000167,2]
[398466321,1765687832451,-1407.72,0.000167,2]
[398466322,1765687832463,-703.86,0.000167,2]
[398466323,1765687832473,-150.0,0.000167,2]
[398466324,1765687832482,-713.0,0.00016712,2]
[398466325,1765687832491,-500.0,0.00016712,2]
[398466326,1765687832500,-150.0,0.00016712,2]
[398466327,1765687832510,-6847.0009,0.0001683,2]
[398466328,1765687832519,-713.0,0.00016849,2]
[398466329,1765687832528,-516.34075122,0.00016849,2]
[398466330,1765687832538,-200.0,0.00016864,2]
[398466331,1765687832547,-168.31,0.00016872,2]
[398466332,1765687832556,-169.26637833,0.00016886,2]
[398466333,1765687832565,-865.1862172,0.000169,2]
[398466334,1765687832575,-188.40401863,0.000169,2]
[398466335,1765687832587,-1000.0,0.00016921,2]
[398466336,1765687832597,-595.37131296,0.00016961,2]
[398466337,1765687832609,-504.03,0.00016961,2]
[398466338,1765687832620,-508.57084344,0.00016961,2]
[398466339,1765687832637,-509.72536877,0.00016961,2]
[398466340,1765687832651,-512.94393691,0.00016961,2]
[398466341,1765687832660,-516.06363268,0.00016961,2]
[398466342,1765687832671,-532.0145937,0.00016961,2]
[398466343,1765687832681,-500.0,0.00016961,2]
[398466344,1765687832690,-500.0,0.00016961,2]
[398466345,1765687832699,-481.15230225,0.00016968,2]
[398466346,1765687832709,-500.0,0.00016973,2]
[398466347,1765687832719,-178.98590511,0.00016973,2]
[398466348,1765687832728,-500.0,0.00016973,2]
[398466349,1765687832737,-500.0,0.00016973,2]
[398466350,1765687832746,-500.0,0.00016973,2]
[398466351,1765687832756,-500.0,0.00016973,2]
[398466352,1765687832765,-500.0,0.00016973,2]
[398466353,1765687832775,-500.0,0.00016973,2]
[398466354,1765687832784,-713.0,0.00016986,2]
[398466355,1765687832795,-660.44,0.0001699,2]
[398466356,1765687832806,-660.44,0.0001699,2]
[398466357,1765687832815,-4378.5361224,0.00016992,2]
[398466358,1765687832824,-5213.5136778,0.00016992,2]
[398466359,1765687832834,-1551.9674931,0.00016992,2]
[398466360,1765687832843,-500.0,0.00016998,2]
[398466361,1765687832853,-579.99190904,0.00016998,2]
[398466362,1765687832862,-36.71492733,0.00016999,2]
[398466363,1765687832875,-463.28507267,0.00016999,2]
[398466364,1765687832884,-300.0,0.00016999,2]
[398466365,1765687832896,-500.0,0.00016999,2]
[398466366,1765687832908,-500.0,0.00016999,2]
[398466367,1765687832917,-500.0,0.00016999,2]
[398466368,1765687832926,-506.25786618,0.00016999,2]
[398466369,1765687832935,-556.52746487,0.00016999,2]
[398466370,1765687832945,-1509.0,0.00017,2]
[398466371,1765687832954,-1271.04485145,0.00017,2]
[398466372,1765687832965,-24830.3915146,0.00017,2]
[398466373,1765687832978,-32399.35334041,0.00017,2]
[398466374,1765687832989,-1254.41808677,0.00017,2]
[398466378,1765687837511,-271.6014817,0.00017,2]
[398466379,1765687837671,-2251.30114968,0.00017,2]
[398466380,1765687837682,-435.0150005,0.00017,2]
[398466381,1765687837693,-12382.0090856,0.00017,2]
[398466416,1765687841091,-2859.88288406,0.00017,2]
[398466417,1765687841126,-1087.8115798,0.00017,2]
[398466418,1765687841137,-1063.84387803,0.00017,2]
[398466419,1765687841147,-561.69782174,0.00017,2]
[398466420,1765687841158,-841.0,0.00017,2]
[398466421,1765687841170,-134450.67538609,0.00017,2]
[398466422,1765687841595,-56651.47195505,0.00017,2]
[398466427,1765687842602,-333.44283979,0.00017,2]
[398466428,1765687842657,-844.91305899,0.00017,2]
[398466429,1765687842765,-6742.913408,0.00017,2]
[398466433,1765687845518,-924.51,0.00017,2]
[398466434,1765687845573,-2133.67853838,0.00017,2]
[398466435,1765687845681,-2880.64335841,0.00017,2]
[398466436,1765687845693,-3081.31644105,0.00017,2]
[398466437,1765687845704,-2744.05130984,0.00017,2]
[398466448,1765688550927,267.89,0.00015752,2]
[398466451,1765688657635,999.0,0.0001577,3]
[398466452,1765688753643,200.0,0.00015758,2]
[398466457,1765688875280,1000.0,0.0001576,2]
[398466458,1765688942379,2077.08,0.00015772,2]
[398466459,1765688942405,10000.01,0.00015772,2]
[398466460,1765688942431,10000.01,0.00015772,2]
[398466461,1765688942455,10000.01,0.00015772,2]
[398466462,1765688942480,10000.01,0.00015772,2]
[398466463,1765688942504,10000.01,0.00015772,2]
[398466464,1765688942527,10000.01,0.00015772,2]
[398466465,1765688942549,10000.01,0.00015772,2]
[398466466,1765688942572,10000.01,0.00015772,2]
[398466467,1765688942596,10000.01,0.00015772,2]
[398466468,1765688949784,-1542.82388988,0.00015772,2]
[398466469,1765688949888,-10000.01,0.00015772,2]
[398466470,1765688949994,-10000.01,0.00015772,2]
[398466471,1765688950115,-10000.01,0.00015772,2]
[398466472,1765688950239,-10000.01,0.00015772,2]
[398466473,1765688950367,-10000.01,0.00015772,2]
[398466474,1765688950481,-10000.01,0.00015772,2]
[398466475,1765688950608,-10000.01,0.00015772,2]
[398466476,1765688950718,-10000.01,0.00015772,2]
[398466477,1765688950845,-10000.01,0.00015772,2]
[398466478,1765688950943,-10000.01,0.00015772,2]
[398466479,1765688954317,-3262.27371012,0.00015772,2]
[398466480,1765688957298,3475.46257976,0.000133,5]
[398466481,1765688957753,2049.53742024,0.000133,5]
[398466482,1765688957787,5525.0,0.00013,3]
[398466483,1765688957818,2425.47257976,0.000128,2]
[398466484,1765688957840,10000.01,0.000128,2]
[398466485,1765688957870,38714.51742024,0.000128,2]
[398466486,1765688988633,5525.0,0.000133,5]
[398466487,1765688990923,4475.0,0.00013,3]
[398466488,1765689019664,0.01,0.000132,5]
[398466489,1765689019687,5524.99,0.000132,5]
[398466490,1765689019889,4475.0,0.000129,3]
[398466499,1765689031719,-1200.0,0.00015862,2]
[398466500,1765689031729,-300.0,0.00015862,2]
[398466501,1765689031741,-151.0,0.00015863,2]
[398466502,1765689031750,-500.0,0.00015863,2]
[398466503,1765689031759,-151.0,0.00015863,2]
[398466504,1765689031769,-500.0,0.00015863,2]
[398466505,1765689031779,-151.0,0.00015863,2]
[398466506,1765689031788,-516.70285968,0.00015863,2]
[398466507,1765689031798,-151.0,0.00015863,2]
[398466508,1765689031807,-151.0,0.00015863,2]
[398466509,1765689031817,-630.49616735,0.00015863,2]
[398466510,1765689031826,-151.0,0.00015863,2]
[398466511,1765689031835,-151.0,0.00015863,2]
[398466512,1765689031845,-151.0,0.00015863,2]
[398466513,1765689031854,-151.0,0.00015863,2]
[398466514,1765689031863,-202.14373771,0.00015863,2]
[398466515,1765689031872,-151.0,0.00015863,2]
[398466516,1765689031881,-151.0,0.00015863,2]
[398466518,1765689031891,-282.43758421,0.00015863,2]
[398466520,1765689031900,-1004.57185293,0.00015871,2]
[398466522,1765689031909,-1000.0,0.00015871,2]
[398466524,1765689031920,-578.46,0.00015871,2]
[398466526,1765689031929,-191.76965697,0.00015871,2]
[398466528,1765689031938,-579.36080594,0.00015871,2]
[398466530,1765689031947,-206.89708361,0.00015871,2]
[398466532,1765689031956,-500.0,0.00015871,2]
[398466534,1765689031966,-614.63655323,0.00015871,2]
[398466536,1765689031975,-270.0,0.00015871,2]
[398466538,1765689031985,-500.0,0.00015871,2]
[398466540,1765689031994,-500.0,0.00015871,2]
[398466541,1765689032003,-500.0,0.00015871,2]
[398466542,1765689032013,-500.0,0.00015871,2]
[398466543,1765689032023,-500.0,0.00015871,2]
[398466544,1765689032032,-500.0,0.00015871,2]
[398466545,1765689032042,-500.0,0.00015871,2]
[398466546,1765689032051,-403.90178717,0.00015871,2]
[398466547,1765689032060,-500.0,0.00015871,2]
[398466548,1765689032070,-338.49106263,0.00015871,2]
[398466549,1765689032079,-500.0,0.00015871,2]
[398466550,1765689032088,-500.0,0.00015871,2]
[398466551,1765689032097,-500.0,0.00015871,2]
[398466552,1765689032107,-500.0,0.00015871,2]
[398466553,1765689032117,-500.0,0.00015871,2]
[398466554,1765689032127,-500.0,0.00015871,2]
[398466555,1765689032136,-500.0,0.00015871,2]
[398466556,1765689032148,-204.27678473,0.00015871,2]
[398466557,1765689032157,-465.84,0.00015922,2]
[398466558,1765689032167,-578.46,0.00016145,2]
[398466559,1765689032177,-166.37,0.00016191,2]
[398466560,1765689032186,-299.9620005,0.00016259,2]
[398466561,1765689032197,-300.0,0.00016259,2]
[398466562,1765689032207,-500.0,0.00016259,2]
[398466564,1765689032217,-500.0,0.00016259,2]
[398466566,1765689032226,-574.12855637,0.00016259,2]
[398466568,1765689032236,-500.0,0.00016259,2]
[398466569,1765689032247,-222.09202813,0.00016259,2]
[398466571,1765689032258,-151.0,0.00016259,2]
[398466572,1765689032269,-487.6216894,0.00016259,2]
[398466573,1765689032282,-512.3783106,0.00016259,2]
[398466574,1765689032293,-1000.0,0.00016259,2]
[398466575,1765689032303,-1000.0,0.00016259,2]
[398466576,1765689032312,-1000.0,0.00016259,2]
[398466577,1765689032322,-151.0,0.00016259,2]
[398466578,1765689032331,-1000.0,0.00016259,2]
[398466579,1765689032340,-1111.0,0.00016259,2]
[398466580,1765689032349,-500.0,0.00016259,2]
[398466581,1765689032359,-578.20924308,0.00016259,2]
[398466582,1765689032369,-198.0,0.00016259,2]
[398466583,1765689032378,-500.0,0.00016259,2]
[398466584,1765689032387,-500.0,0.00016259,2]
[398466585,1765689032396,-500.0,0.00016259,2]
[398466586,1765689032405,-519.01709768,0.00016259,2]
[398466587,1765689032415,-200.0,0.00016259,2]
[398466588,1765689032424,-207.4,0.00016259,2]
[398466589,1765689032434,-215.0738,0.00016259,2]
[398466590,1765689032443,-308.80660451,0.00016259,2]
[398466591,1765689032453,-250.0,0.00016259,2]
[398466592,1765689032465,-250.0,0.00016259,2]
[398466593,1765689032474,-250.0,0.00016259,2]
[398466594,1765689032483,-250.0,0.00016259,2]
[398466595,1765689032492,-261.15071773,0.00016259,2]
[398466596,1765689032501,-2200.21192552,0.00016273,2]
[398466597,1765689032511,-1111.0,0.00016314,2]
[398466598,1765689032520,-1111.0,0.00016369,2]
[398466599,1765689032530,-559.91637451,0.00016373,2]
[398466600,1765689032540,-622.20369641,0.00016373,2]
[398466601,1765689032550,-500.0,0.00016373,2]
[398466602,1765689032561,-500.0,0.00016373,2]
[398466603,1765689032572,-500.0,0.00016373,2]
[398466604,1765689032582,-500.0,0.00016373,2]
[398466605,1765689032592,-500.0,0.00016373,2]
[398466606,1765689032602,-500.0,0.00016373,2]
[398466607,1765689032611,-434.90903881,0.00016373,2]
[398466608,1765689032623,-65.09096119,0.00016373,2]
[398466609,1765689032634,-500.95262835,0.00016373,2]
[398466610,1765689032643,-250.44393066,0.00016373,2]
[398466611,1765689032653,-501.93522657,0.00016373,2]
[398466612,1765689032662,-500.0,0.00016373,2]
[398466613,1765689032671,-501.18975219,0.00016373,2]
[398466614,1765689032680,-500.0,0.00016373,2]
[398466615,1765689032690,-500.0,0.00016373,2]
[398466616,1765689032700,-172.40708583,0.00016373,2]
[398466617,1765689032709,-500.0,0.00016373,2]
[398466618,1765689032719,-515.41258827,0.00016373,2]
[398466619,1765689032728,-501.9090858,0.00016373,2]
[398466620,1765689032737,-315.16697864,0.00016373,2]
[398466621,1765689032747,-500.0,0.00016373,2]
[398466622,1765689032756,-500.0,0.00016373,2]
[398466623,1765689032766,-500.0,0.00016373,2]
[398466624,1765689032775,-500.0,0.00016373,2]
[398466625,1765689032785,-500.0,0.00016373,2]